fUSD/lending_fUSD_20260519
["ID","MTS","AMOUNT","RATE_DAILY","PERIOD"]
[422635417,1779187844000,-500.0,0.0002913,7]
[422635427,1779187844000,-500.0,0.0002913,7]
[422635430,1779187844000,-500.0,0.0002913,7]
[422635443,1779187844000,-150.70512206,0.00029139,7]
[422635390,1779187844000,-500.0,0.0002913,7]
[422635419,1779187844000,-500.0,0.0002913,7]
[422635396,1779187844000,-500.0,0.0002913,7]
[422635367,1779187844000,-218.31,0.00029105,2]
[422635394,1779187844000,-500.0,0.0002913,7]
[422635442,1779187844000,-191.1620045,0.00029139,2]
[422635364,1779187844000,-262.26,0.000291,2]
[422635365,1779187844000,-262.26,0.000291,2]
[422635363,1779187844000,-439.3,0.00029074,30]
[422635366,1779187844000,-1146.4,0.00029105,2]
[422635368,1779187844000,-382.09,0.00029105,2]
[422635370,1779187844000,-1146.52,0.00029105,2]
[422635372,1779187844000,-439.3,0.00029105,2]
[422635379,1779187844000,-500.0,0.0002913,7]
[422635369,1779187844000,-441.28,0.00029105,2]
[422635371,1779187844000,-218.13,0.00029105,2]
[422635373,1779187844000,-155.47197482,0.00029129,7]
[422635381,1779187844000,-500.0,0.0002913,7]
[422635374,1779187844000,-500.0,0.0002913,7]
[422635377,1779187844000,-500.0,0.0002913,7]
[422635378,1779187844000,-500.0,0.0002913,7]
[422635375,1779187844000,-500.0,0.0002913,7]
[422635380,1779187844000,-500.0,0.0002913,7]
[422635376,1779187844000,-500.0,0.0002913,7]
[422635382,1779187844000,-500.0,0.0002913,7]
[422635386,1779187844000,-500.0,0.0002913,7]
[422635392,1779187844000,-500.0,0.0002913,7]
[422635431,1779187844000,-619.59,0.0002913,7]
[422635437,1779187844000,-382.09,0.00029137,7]
[422635435,1779187844000,-1146.4,0.00029137,7]
[422635463,1779187844000,-441.33,0.00029232,7]
[422635462,1779187844000,-382.18,0.00029232,7]
[422635464,1779187844000,-1146.61,0.00029232,7]
[422635461,1779187844000,-218.42,0.00029232,7]
[422635466,1779187844000,-439.48,0.00029232,7]
[422635470,1779187844000,-3000.0,0.000293,2]
[422635468,1779187844000,-163.0,0.00029294,3]
[422635471,1779187844000,-1000.0,0.00029307,60]
[422635467,1779187844000,-169.25,0.00029258,3]
[422635465,1779187844000,-218.3,0.00029232,7]
[422635469,1779187844000,-1511.0,0.00029294,3]
[422635473,1779187844000,-500.0,0.00029308,60]
[422635472,1779187844000,-1300.0,0.00029308,60]
[422635475,1779187844000,-1500.0,0.00029534,15]
[422635477,1779187844000,-152.0,0.00029645,30]
[422635476,1779187844000,-150.0,0.00029534,2]
[422635474,1779187844000,-53650.59156407,0.000295,2]
[422635479,1779187844000,-152.0,0.00029742,7]
[422635480,1779187844000,-152.0,0.00029742,7]
[422635482,1779187844000,-488.56,0.0002975,14]
[422635432,1779187844000,-500.0,0.0002913,7]
[422635459,1779187844000,-2455.63122309,0.00029226,2]
[422635460,1779187844000,-1146.44,0.00029232,7]
[422635478,1779187844000,-5473.13,0.0002973,2]
[422635456,1779187844000,-1146.52,0.00029201,2]
[422635457,1779187844000,-218.13,0.00029201,2]
[422635441,1779187844000,-439.3,0.00029137,7]
[422635434,1779187844000,-192.21,0.0002913,30]
[422635481,1779187844000,-1000.0,0.00029747,4]
[422635438,1779187844000,-441.28,0.00029137,7]
[422635436,1779187844000,-218.31,0.00029137,7]
[422635440,1779187844000,-218.13,0.00029137,7]
[422635439,1779187844000,-1146.52,0.00029137,7]
[422635444,1779187844000,-267.54370149,0.00029139,7]
[422635445,1779187844000,-1146.4,0.00029169,30]
[422635433,1779187844000,-500.0,0.0002913,7]
[422635446,1779187844000,-218.31,0.00029169,30]
[422635455,1779187844000,-441.28,0.00029201,2]
[422635447,1779187844000,-382.09,0.00029169,30]
[422635452,1779187844000,-1146.4,0.00029201,2]
[422635454,1779187844000,-382.09,0.00029201,2]
[422635458,1779187844000,-439.3,0.00029201,2]
[422635449,1779187844000,-1146.52,0.00029169,30]
[422635451,1779187844000,-439.3,0.00029169,30]
[422635448,1779187844000,-441.28,0.00029169,30]
[422635450,1779187844000,-218.13,0.00029169,30]
[422635453,1779187844000,-218.31,0.00029201,2]
[422635501,1779187845000,-398.0,0.00029979,2]
[422635491,1779187845000,-398.0,0.00029946,2]
[422635502,1779187845000,-1000.0,0.00029998,3]
[422635498,1779187845000,-350.0,0.00029972,2]
[422635492,1779187845000,-350.0,0.00029972,2]
[422635494,1779187845000,-350.0,0.00029972,2]
[422635495,1779187845000,-350.0,0.00029972,2]
[422635493,1779187845000,-350.0,0.00029972,2]
[422635485,1779187845000,-398.0,0.00029867,2]
[422635490,1779187845000,-398.0,0.00029916,2]
[422635489,1779187845000,-398.0,0.00029901,2]
[422635488,1779187845000,-398.0,0.00029897,2]
[422635487,1779187845000,-200.0,0.00029874,2]
[422635486,1779187845000,-7184.23,0.00029872,2]
[422635484,1779187845000,-152.0,0.00029802,7]
[422635483,1779187845000,-152.0,0.00029802,7]
[422635499,1779187845000,-350.0,0.00029972,2]
[422635496,1779187845000,-350.0,0.00029972,2]
[422635500,1779187845000,-459.0,0.00029972,2]
[422635513,1779187845000,-1109.01239999,0.0003003,2]
[422635503,1779187845000,-253.0,0.0003,14]
[422635522,1779187845000,-1554.38999996,0.00023588,2]
[422635521,1779187845000,-1647.46000004,0.00023588,2]
[422635520,1779187845000,-26.4545959,0.00023588,2]
[422635517,1779187845000,-150.0,0.00020757,2]
[422635519,1779187845000,-250.0,0.00022556,2]
[422635518,1779187845000,-166.12,0.00022556,2]
[422635516,1779187845000,-8843.44422918,0.00030037,2]
[422635497,1779187845000,-350.0,0.00029972,2]
[422635511,1779187845000,-458.08,0.00030029,14]
[422635508,1779187845000,-162.0,0.0003002,30]
[422635515,1779187845000,-1000.0,0.00030034,14]
[422635512,1779187845000,-178.70239217,0.0003003,2]
[422635510,1779187845000,-490.0,0.00030022,2]
[422635509,1779187845000,-398.0,0.00030021,2]
[422635505,1779187845000,-193.0,0.00030016,2]
[422635504,1779187845000,-200.0,0.0003,2]
[422635506,1779187845000,-398.0,0.00030018,2]
[422635507,1779187845000,-167.0,0.0003002,30]
[422635514,1779187845000,-3703.88332838,0.0003003,2]
[422635653,1779187857000,-150.0,0.00021795,2]
[422635649,1779187857000,-500.0,0.00013667,2]
[422635650,1779187857000,-500.0,0.00013667,2]
[422635651,1779187857000,-500.0,0.00013667,2]
[422635658,1779187857000,-110.45365648,0.00025556,2]
[422635652,1779187857000,-425.14015744,0.00013667,2]
[422635657,1779187857000,-150.0,0.00024029,2]
[422635656,1779187857000,-390.64806201,0.00023588,2]
[422635655,1779187857000,-150.0,0.00022885,2]
[422635654,1779187857000,-917.0,0.00022556,2]
[422635659,1779187869000,-5000.01,0.00013668,2]
[422635663,1779187904000,-300.0,0.00013667,2]
[422635662,1779187904000,-5000.01,0.00013668,2]
[422635660,1779187904000,-300.0,0.00013667,2]
[422635661,1779187904000,-4700.01,0.00013668,2]
[422635667,1779188096000,185.84863817,0.0003,120]
[422635668,1779188128000,-196.51,0.00012376,2]
[422635670,1779188377000,-196.51,0.00013002,2]
[422635673,1779188425000,10000.0,0.00030137,120]
[422635677,1779188550000,2048.43875119,8e-05,2]
[422635681,1779188626000,-215.15951567,0.00013297,2]
[422635687,1779188874000,-300.0,0.00012847,2]
[422635688,1779188941000,1000.0,0.00030136,120]
[422635697,1779189033000,-200.86473779,0.00013108,2]
[422635692,1779189033000,-1200.0,0.00012847,2]
[422635693,1779189033000,-300.0,0.00012847,2]
[422635694,1779189033000,-1200.0,0.00012847,2]
[422635695,1779189033000,-15506.07,0.00012848,2]
[422635705,1779189033000,-3870.46080675,0.00013468,2]
[422635691,1779189033000,-200.86473781,0.00012748,2]
[422635696,1779189033000,-3547.11,0.00012914,2]
[422635701,1779189033000,-5942.8,0.00013451,2]
[422635703,1779189033000,-1746.34149765,0.00013468,2]
[422635700,1779189033000,-668.44,0.00013199,2]
[422635699,1779189033000,-491.79,0.00013199,2]
[422635702,1779189033000,-200.86473779,0.00013467,2]
[422635704,1779189033000,-1439.90558138,0.00013468,2]
[422635698,1779189033000,-1579.73,0.00013198,2]
[422635734,1779189034000,-500.0,0.00013567,2]
[422635740,1779189034000,-500.0,0.00013567,2]
[422635741,1779189034000,-500.0,0.00013567,2]
[422635738,1779189034000,-500.0,0.00013567,2]
[422635743,1779189034000,-500.0,0.00013567,2]
[422635739,1779189034000,-500.0,0.00013567,2]
[422635736,1779189034000,-500.0,0.00013567,2]
[422635742,1779189034000,-500.0,0.00013567,2]
[422635729,1779189034000,-500.0,0.00013567,2]
[422635737,1779189034000,-500.0,0.00013567,2]
[422635733,1779189034000,-500.0,0.00013567,2]
[422635749,1779189034000,-500.0,0.00013567,2]
[422635745,1779189034000,-500.0,0.00013567,2]
[422635747,1779189034000,-500.0,0.00013567,2]
[422635746,1779189034000,-500.0,0.00013567,2]
[422635750,1779189034000,-500.0,0.00013567,2]
[422635756,1779189034000,-500.0,0.00013567,2]
[422635752,1779189034000,-500.0,0.00013567,2]
[422635748,1779189034000,-500.0,0.00013567,2]
[422635751,1779189034000,-500.0,0.00013567,2]
[422635758,1779189034000,-500.0,0.00013567,2]
[422635726,1779189034000,-500.0,0.00013567,2]
[422635735,1779189034000,-500.0,0.00013567,2]
[422635730,1779189034000,-500.0,0.00013567,2]
[422635716,1779189034000,-500.0,0.00013567,2]
[422635727,1779189034000,-500.0,0.00013567,2]
[422635753,1779189034000,-500.0,0.00013567,2]
[422635706,1779189034000,-150.0,0.00013488,2]
[422635707,1779189034000,-152.10400648,0.00013488,2]
[422635709,1779189034000,-150.0,0.00013488,2]
[422635708,1779189034000,-150.0,0.00013488,2]
[422635719,1779189034000,-500.0,0.00013567,2]
[422635710,1779189034000,-150.0,0.00013488,2]
[422635713,1779189034000,-150.0,0.00013567,2]
[422635711,1779189034000,-150.0,0.00013488,2]
[422635712,1779189034000,-1046.425,0.00013566,2]
[422635728,1779189034000,-500.0,0.00013567,2]
[422635714,1779189034000,-500.0,0.00013567,2]
[422635717,1779189034000,-500.0,0.00013567,2]
[422635715,1779189034000,-500.0,0.00013567,2]
[422635720,1779189034000,-500.0,0.00013567,2]
[422635722,1779189034000,-500.0,0.00013567,2]
[422635724,1779189034000,-500.0,0.00013567,2]
[422635723,1779189034000,-500.0,0.00013567,2]
[422635725,1779189034000,-500.0,0.00013567,2]
[422635721,1779189034000,-500.0,0.00013567,2]
[422635731,1779189034000,-500.0,0.00013567,2]
[422635732,1779189034000,-500.0,0.00013567,2]
[422635718,1779189034000,-500.0,0.00013567,2]
[422635755,1779189034000,-500.0,0.00013567,2]
[422635744,1779189034000,-500.0,0.00013567,2]
[422635754,1779189034000,-204.80528249,0.00013567,2]
[422635783,1779189034000,-500.0,0.00013567,2]
[422635787,1779189034000,-500.0,0.00013567,2]
[422635797,1779189034000,-288.01654092,0.00013567,2]
[422635786,1779189034000,-500.0,0.00013567,2]
[422635789,1779189034000,-500.0,0.00013567,2]
[422635791,1779189034000,-500.0,0.00013567,2]
[422635794,1779189034000,-200.0,0.00013567,2]
[422635792,1779189034000,-500.0,0.00013567,2]
[422635788,1779189034000,-500.0,0.00013567,2]
[422635796,1779189034000,-500.0,0.00013567,2]
[422635777,1779189034000,-500.0,0.00013567,2]
[422635795,1779189034000,-500.0,0.00013567,2]
[422635793,1779189034000,-500.0,0.00013567,2]
[422635798,1779189034000,-500.0,0.00013567,2]
[422635802,1779189034000,-617.7858112,0.00013567,2]
[422635804,1779189034000,-500.0,0.00013567,2]
[422635803,1779189034000,-500.0,0.00013567,2]
[422635801,1779189034000,-501.24950756,0.00013567,2]
[422635807,1779189034000,-226109.45644536,0.00013568,2]
[422635799,1779189034000,-325.59088978,0.00013567,2]
[422635806,1779189034000,-1253.0,0.00013568,2]
[422635757,1779189034000,-500.0,0.00013567,2]
[422635790,1779189034000,-500.0,0.00013567,2]
[422635784,1779189034000,-500.0,0.00013567,2]
[422635800,1779189034000,-500.0,0.00013567,2]
[422635785,1779189034000,-500.0,0.00013567,2]
[422635761,1779189034000,-500.0,0.00013567,2]
[422635771,1779189034000,-650.0,0.00013567,2]
[422635772,1779189034000,-500.0,0.00013567,2]
[422635770,1779189034000,-500.0,0.00013567,2]
[422635759,1779189034000,-500.0,0.00013567,2]
[422635762,1779189034000,-500.0,0.00013567,2]
[422635763,1779189034000,-500.0,0.00013567,2]
[422635760,1779189034000,-500.0,0.00013567,2]
[422635769,1779189034000,-500.0,0.00013567,2]
[422635764,1779189034000,-500.0,0.00013567,2]
[422635768,1779189034000,-500.0,0.00013567,2]
[422635766,1779189034000,-500.0,0.00013567,2]
[422635765,1779189034000,-500.0,0.00013567,2]
[422635773,1779189034000,-500.0,0.00013567,2]
[422635775,1779189034000,-500.0,0.00013567,2]
[422635780,1779189034000,-500.0,0.00013567,2]
[422635779,1779189034000,-500.0,0.00013567,2]
[422635774,1779189034000,-500.0,0.00013567,2]
[422635781,1779189034000,-500.0,0.00013567,2]
[422635782,1779189034000,-500.0,0.00013567,2]
[422635805,1779189034000,-500.0,0.00013567,2]
[422635778,1779189034000,-500.0,0.00013567,2]
[422635767,1779189034000,-500.0,0.00013567,2]
[422635776,1779189034000,-500.0,0.00013567,2]
[422635810,1779189038000,-23920.89565337,0.00013568,2]
[422635808,1779189038000,-2008.31450221,0.00013568,2]
[422635809,1779189038000,-12317.03416635,0.00013568,2]
[422635811,1779189038000,-3248.29986574,0.00013568,2]
[422635812,1779189038000,-866.12932493,0.00013568,2]
[422635814,1779189038000,-2666.28575019,0.00013568,2]
[422635813,1779189038000,-2184.34232518,0.00013568,2]
[422635817,1779189038000,-1193.48095674,0.00013568,2]
[422635816,1779189038000,-359.96230042,0.00013568,2]
[422635815,1779189038000,-489.66817216,0.00013568,2]
[422635833,1779189040000,-2196.60000014,0.00013568,2]
[422635832,1779189040000,-697.02173086,0.00013568,2]
[422635852,1779189041000,-3870.46080675,0.00013945,2]
[422635847,1779189041000,-150.0,0.00013875,2]
[422635848,1779189041000,-1439.90558136,0.00013877,2]
[422635859,1779189041000,-3870.46080675,0.00014104,2]
[422635855,1779189041000,-1439.90558136,0.00014082,2]
[422635850,1779189041000,-1746.34149763,0.00013945,2]
[422635856,1779189041000,-420.0,0.00014091,2]
[422635868,1779189041000,-3870.46080675,0.00014423,2]
[422635854,1779189041000,-150.0,0.00013987,2]
[422635846,1779189041000,-3870.46080675,0.00013786,2]
[422635842,1779189041000,-500.0,0.00013698,2]
[422635843,1779189041000,-213.64523923,0.00013698,2]
[422635844,1779189041000,-7264.1,0.00013699,2]
[422635840,1779189041000,-1439.90558136,0.00013673,2]
[422635841,1779189041000,-500.0,0.00013698,2]
[422635839,1779189041000,-196.51,0.00013627,2]
[422635838,1779189041000,-3870.46080675,0.00013627,2]
[422635835,1779189041000,-388905.69841588,0.00013568,2]
[422635836,1779189041000,-495.7453,0.00013568,2]
[422635834,1779189041000,-1407.52319047,0.00013568,2]
[422635857,1779189041000,-1746.34149763,0.00014104,2]
[422635845,1779189041000,-1746.34149763,0.00013786,2]
[422635862,1779189041000,-200.0,0.00014249,2]
[422635837,1779189041000,-1746.34149763,0.00013627,2]
[422635860,1779189041000,-1680.0,0.00014132,2]
[422635883,1779189041000,-300.0,0.00014999,2]
[422635885,1779189041000,-20045.44254505,0.00015,2]
[422635882,1779189041000,-150.0,0.00014986,2]
[422635884,1779189041000,-762056.06330208,0.00015,2]
[422635861,1779189041000,-166.98,0.00014232,2]
[422635877,1779189041000,-1746.34149763,0.000149,2]
[422635874,1779189041000,-1746.34149763,0.00014741,2]
[422635872,1779189041000,-3870.46080675,0.00014582,2]
[422635873,1779189041000,-1439.90558136,0.00014695,2]
[422635878,1779189041000,-405.02167106,0.000149,2]
[422635870,1779189041000,-1439.90558136,0.00014491,2]
[422635881,1779189041000,-166.98,0.00014981,2]
[422635879,1779189041000,-1439.90558136,0.000149,2]
[422635875,1779189041000,-3870.46080675,0.00014741,2]
[422635880,1779189041000,-3870.46080675,0.000149,2]
[422635869,1779189041000,-150.0,0.00014487,2]
[422635871,1779189041000,-1746.34149763,0.00014582,2]
[422635865,1779189041000,-3870.46080675,0.00014264,2]
[422635867,1779189041000,-1746.34149763,0.00014423,2]
[422635864,1779189041000,-1746.34149763,0.00014264,2]
[422635866,1779189041000,-1439.90558136,0.00014286,2]
[422635863,1779189041000,-196.51,0.00014253,2]
[422635876,1779189041000,-196.51,0.00014879,2]
[422635892,1779189043000,-6763.8913094,0.00015,2]
[422635891,1779189043000,-33730.68822505,0.00015,2]
[422635893,1779189043000,-731.11838425,0.00015,2]
[422635899,1779189044000,170.34,9.003e-05,2]
[422635901,1779189045000,170.34,9.914e-05,2]
[422635900,1779189045000,170.34,9.459e-05,2]
[422635906,1779189046000,-1803.64,0.00015,2]
[422635904,1779189046000,-170.34,0.0001128,2]
[422635907,1779189046000,-8090.69570622,0.00015,2]
[422635905,1779189046000,-170.34,0.00011735,2]
[422635903,1779189046000,-170.34,0.00010825,2]
[422635902,1779189046000,-170.34,0.00010369,2]
[422635910,1779189047000,-170.34,0.00013101,2]
[422635908,1779189047000,-170.34,0.0001219,2]
[422635909,1779189047000,-170.34,0.00012646,2]
[422635911,1779189047000,-741.98,0.00015,2]
[422635928,1779189123000,-170.34,0.00013556,2]
[422635931,1779189373000,-227.91362285,0.00013567,2]
[422635932,1779189562000,-726.330924,0.00013629,2]
[422635934,1779189751000,-300.0,0.00013561,2]
[422635936,1779189939000,-375.19,0.00013296,2]
[422635939,1779189951000,160.51,7.706e-05,2]
[422635938,1779189951000,160.51,7.133e-05,2]
[422635937,1779189951000,160.51,6.56e-05,2]
[422635942,1779189952000,160.51,9.425e-05,2]
[422635943,1779189952000,160.51,9.998e-05,2]
[422635941,1779189952000,160.51,8.852e-05,2]
[422635940,1779189952000,160.51,8.279e-05,2]
[422635944,1779190110000,500.0,0.00030137,120]
[422635947,1779190129000,-160.51,0.00010571,2]
[422635948,1779190145000,1000.0,0.00030136,120]
[422635967,1779190231000,-1151.0,0.00013316,2]
[422635973,1779190231000,-254.67783396,0.00013488,2]
[422635971,1779190231000,-284.58525916,0.00013488,2]
[422635969,1779190231000,-11111.71,0.00013364,2]
[422635987,1779190231000,-150.0,0.00013488,2]
[422635977,1779190231000,-152.75252402,0.00013488,2]
[422635991,1779190231000,-150.0,0.00013561,2]
[422635989,1779190231000,-150.0,0.00013488,2]
[422635963,1779190231000,-71.0062733,0.00012758,2]
[422635974,1779190231000,-150.00000001,0.00013488,2]
[422635968,1779190231000,-9034.51,0.00013317,2]
[422635957,1779190231000,-225.0,0.0001165,2]
[422635966,1779190231000,-977.36146394,0.00013315,2]
[422635965,1779190231000,-222.63853606,0.00013315,2]
[422635962,1779190231000,-118.4137267,0.00012758,2]
[422635960,1779190231000,-176.24,0.0001266,2]
[422635961,1779190231000,-200.0,0.00012697,2]
[422635959,1779190231000,-160.51,0.0001229,2]
[422635958,1779190231000,-160.51,0.00011717,2]
[422635956,1779190231000,-150.0,0.00011536,2]
[422635955,1779190231000,-160.51,0.00011144,2]
[422635964,1779190231000,-160.51,0.00012863,2]
[422635993,1779190231000,-19611.25,0.00013562,2]
[422636020,1779190231000,-3887.9435756,0.00013758,2]
[422635981,1779190231000,-152.35107502,0.00013488,2]
[422635979,1779190231000,-152.60139806,0.00013488,2]
[422636033,1779190231000,-428.99909967,0.00013766,2]
[422636035,1779190231000,-500.0,0.00013766,2]
[422636031,1779190231000,-500.0,0.00013766,2]
[422636029,1779190231000,-500.0,0.00013766,2]
[422636027,1779190231000,-500.0,0.00013766,2]
[422636037,1779190231000,-500.0,0.00013766,2]
[422636021,1779190231000,-45572.24273572,0.00013758,2]
[422636017,1779190231000,-150.0,0.00013737,2]
[422636015,1779190231000,-782.24,0.00013715,2]
[422636011,1779190231000,-166.98,0.00013699,2]
[422636024,1779190231000,-60019.20296218,0.00013758,2]
[422636005,1779190231000,-7975.30405074,0.00013674,2]
[422636013,1779190231000,-200.0,0.00013699,2]
[422635985,1779190231000,-150.0,0.00013488,2]
[422635995,1779190231000,-1962.99,0.00013588,2]
[422635997,1779190231000,-789.86,0.00013625,2]
[422635999,1779190231000,-3982.50243954,0.00013666,2]
[422635983,1779190231000,-150.0,0.00013488,2]
[422636003,1779190231000,-8728.88633526,0.00013674,2]
[422636009,1779190231000,-1575.2234,0.00013678,2]
[422636007,1779190231000,-3671.7282,0.00013678,2]
[422636001,1779190231000,-2500.0,0.00013667,2]
[422636058,1779190232000,-500.0,0.00013766,2]
[422636082,1779190232000,-500.0,0.00013766,2]
[422636078,1779190232000,-500.0,0.00013766,2]
[422636084,1779190232000,-500.0,0.00013766,2]
[422636074,1779190232000,-500.0,0.00013766,2]
[422636072,1779190232000,-500.0,0.00013766,2]
[422636070,1779190232000,-500.0,0.00013766,2]
[422636075,1779190232000,-500.0,0.00013766,2]
[422636068,1779190232000,-500.0,0.00013766,2]
[422636055,1779190232000,-378.25613711,0.00013766,2]
[422636039,1779190232000,-500.0,0.00013766,2]
[422636051,1779190232000,-500.0,0.00013766,2]
[422636054,1779190232000,-500.0,0.00013766,2]
[422636064,1779190232000,-500.0,0.00013766,2]
[422636062,1779190232000,-500.0,0.00013766,2]
[422636060,1779190232000,-500.0,0.00013766,2]
[422636050,1779190232000,-500.0,0.00013766,2]
[422636047,1779190232000,-500.0,0.00013766,2]
[422636045,1779190232000,-500.0,0.00013766,2]
[422636044,1779190232000,-500.0,0.00013766,2]
[422636041,1779190232000,-500.0,0.00013766,2]
[422636066,1779190232000,-500.0,0.00013766,2]
[422636087,1779190232000,-500.0,0.00013766,2]
[422636100,1779190232000,-500.0,0.00013766,2]
[422636080,1779190232000,-500.0,0.00013766,2]
[422636086,1779190232000,-500.0,0.00013766,2]
[422636128,1779190232000,-1254.41808677,0.00013767,2]
[422636126,1779190232000,-271570.63807032,0.00013767,2]
[422636124,1779190232000,-425.14015744,0.00013766,2]
[422636122,1779190232000,-500.0,0.00013766,2]
[422636120,1779190232000,-279.08170364,0.00013766,2]
[422636115,1779190232000,-500.0,0.00013766,2]
[422636117,1779190232000,-220.91829636,0.00013766,2]
[422636114,1779190232000,-500.0,0.00013766,2]
[422636106,1779190232000,-500.0,0.00013766,2]
[422636102,1779190232000,-500.0,0.00013766,2]
[422636112,1779190232000,-500.0,0.00013766,2]
[422636108,1779190232000,-500.0,0.00013766,2]
[422636098,1779190232000,-500.0,0.00013766,2]
[422636096,1779190232000,-500.0,0.00013766,2]
[422636110,1779190232000,-500.0,0.00013766,2]
[422636095,1779190232000,-500.0,0.00013766,2]
[422636093,1779190232000,-500.0,0.00013766,2]
[422636091,1779190232000,-500.0,0.00013766,2]
[422636088,1779190232000,-500.0,0.00013766,2]
[422636089,1779190232000,-250.0,0.00013766,2]
[422636104,1779190232000,-500.0,0.00013766,2]
[422636173,1779190237000,-191.8913676,0.00013774,2]
[422636169,1779190237000,-1833.03445094,0.00013767,2]
[422636170,1779190237000,-816.62506821,0.00013767,2]
[422636171,1779190237000,-2931.94529864,0.00013767,2]
[422636174,1779190237000,-2040.0267499,0.00013774,2]
[422636172,1779190237000,-204834.79576562,0.00013767,2]
[422636175,1779190237000,-500.0,0.00013777,2]
[422636176,1779190237000,-201.61157864,0.00013777,2]
[422636178,1779190237000,-159.53953599,0.00013777,2]
[422636177,1779190237000,-500.0,0.00013777,2]
[422636180,1779190237000,-632.45006784,0.00013777,2]
[422636181,1779190237000,-500.0,0.00013777,2]
[422636179,1779190237000,-400.87465529,0.00013777,2]
[422636233,1779190238000,-150.0,0.00014653,2]
[422636229,1779190238000,-8728.88633526,0.00014628,2]
[422636240,1779190238000,-782.24,0.00014743,2]
[422636226,1779190238000,-3982.50243954,0.00014626,2]
[422636242,1779190238000,-3982.50243954,0.00014763,2]
[422636244,1779190238000,-8728.88633526,0.00014764,2]
[422636225,1779190238000,-7975.30405073,0.0001455,2]
[422636222,1779190238000,-8728.88633526,0.00014491,2]
[422636220,1779190238000,-3982.50243954,0.00014489,2]
[422636235,1779190238000,-7975.30405073,0.00014725,2]
[422636231,1779190238000,-1680.0,0.00014647,2]
[422636251,1779190238000,-500.0,0.00014873,2]
[422636247,1779190238000,-5000.0,0.00014767,2]
[422636249,1779190238000,-510.83473575,0.00014873,2]
[422636256,1779190238000,-25000.0,0.00014874,3]
[422636258,1779190238000,-25000.0,0.00014882,3]
[422636261,1779190238000,-25000.0,0.00014882,3]
[422636263,1779190238000,-837.78851962,0.0001489,2]
[422636265,1779190238000,-25000.0,0.00014891,3]
[422636270,1779190238000,-2782.48853812,0.000149,2]
[422636268,1779190238000,-25000.0,0.00014891,3]
[422636272,1779190238000,-289218.0911,0.000149,2]
[422636218,1779190238000,-150.0,0.00014487,2]
[422636237,1779190238000,-150.0,0.00014737,2]
[422636216,1779190238000,-782.24,0.000144,2]
[422636192,1779190238000,-250.0,0.00014,2]
[422636213,1779190238000,-166.98,0.00014384,2]
[422636183,1779190238000,-134067.6500026,0.00013778,2]
[422636184,1779190238000,-2268.2081375,0.00013778,2]
[422636182,1779190238000,-177.4722537,0.00013778,2]
[422636186,1779190238000,-8728.88633526,0.0001381,2]
[422636185,1779190238000,-3982.50243954,0.00013803,2]
[422636187,1779190238000,-500.0,0.0001383,2]
[422636189,1779190238000,-3982.50243954,0.0001394,2]
[422636188,1779190238000,-7975.30405073,0.00013849,2]
[422636191,1779190238000,-150.0,0.00013987,2]
[422636274,1779190238000,-16227.9761,0.000149,2]
[422636190,1779190238000,-8728.88633526,0.00013946,2]
[422636207,1779190238000,-3982.50243954,0.00014352,2]
[422636193,1779190238000,-7975.30405073,0.00014024,2]